[Event "39th Muensterland Open 2022"]
[Site "Muenster"]
[Date "2022.10.05"]
[Round "6.3"]
[White "Schmitzer, Klaus"]
[Black "Dordevic, Tom"]
[Result "0-1"]
[ECO "B90"]
[WhiteElo "2250"]
[BlackElo "1767"]
[Annotator "TA"]
[PlyCount "108"]
[EventDate "2022.10.01"]
[EventType "swiss"]
[EventCountry "GER"]
[SourceTitle "playchess.com"]
[Source "ChessBase"]
[SourceQuality "1"]
[TimeControl "40/5400+30:1800+30"]

{[%evp 21,108,14,26,24,27,19,54,29,66,34,39,35,68,55,113,45,37,22,56,22,130,35,74,65,81,66,156,170,170,157,254,245,227,99,89,118,89,63,297,297,297,297,311,297,297,297,439,297,297,297,297,297,297,296,384,383,374,373,1581,1605,1394,1223,2406,631,611,-1608,0,0,0,0,0,0,0,0,0,0,0,-4132,-2607,-1547,-1528,-29995,-29996,-29996,-29997,-29997,-29998,-29998,-29999]} 1. e4 {[%emt 0:01:29]} c5 {[%emt 0:00:44]} 2. Nf3 {[%emt 0:00:11]} d6 {[%emt 0:00:04]} 3. d4 {[%emt 0:00:06]} cxd4 {[%emt 0:00:03]} 4. Nxd4 {[%emt 0:00:09]} Nf6 {[%emt 0:00:05]} 5. Nc3 {[%emt 0:00:19]} a6 {[%emt 0:00:08]} 6. f3 {[%emt 0:00:16]} e5 {[%emt 0:00:04]} 7. Nb3 {[%emt 0:00:21]} Be6 {[%emt 0:00:05]} 8. Be3 {[%emt 0:00:25]} h5 {[%emt 0:00:09]} 9. Qd2 {[%emt 0:00:39]} Nbd7 {[%emt 0:00:59]} 10. O-O-O {[%emt 0:04:55]} Rc8 {[%emt 0:00:34]} 11. Kb1 {[%emt 0:04:42]} Be7 {[%emt 0:00:19]} 12. g3 {[%emt 0:01:16] B90: Sicilian Najdorf: Unusual White 6th moves, 6 Be3 Ng4 and 6 Be3 e5.} Qc7 {[%emt 0:02:28]} 13. h3 {[%emt 0:09:14]} g6 {[%emt 0:04:46]} 14. Qf2 {[%emt 0:03:21] [#] White is slightly better.} Kf8 $146 {[%emt 0:05:01]} ({Predecessor:} 14... b5 15. Rd2 Qb7 16. Na5 Qc7 17. Nb3 Qb7 18. Na5 Qa8 19. Bg2 Rxc3 20. bxc3 Qc8 {0-1 (34) Kantans,T (2479)-Tazbir,M (2527) Finland 2014}) 15. Nd5 {[%emt 0:02:45]} Bxd5 {[%emt 0:02:08]} 16. exd5 {[%emt 0:00:06]} Kg7 {[%emt 0:00:20]} 17. Bg2 {[%emt 0:06:10]} (17. c3 $5 {[%cal Rf1e2]}) 17... b5 {[%emt 0:03:00]} (17... a5 $14) 18. g4 {[%emt 0:05:24]} (18. a3 $16) 18... a5 $1 $14 {[%emt 0:02:21]} 19. g5 {[%emt 0:08:38]} Nh7 {[%emt 0:01:12]} 20. f4 {[%emt 0:01:17]} a4 {[%emt 0:04:36] [#]} 21. Nc1 {[%emt 0:01:09]} (21. Nd4 $1 $16 {[%cal Rd4b5][%mdl 512]}) 21... exf4 {[%emt 0:01:50]} 22. Bd4+ {[%emt 0:08:44]} Ne5 {[%emt 0:00:20]} 23. h4 {[%emt 0:00:12] Threatens to win with Nd3.} Nf8 {[%emt 0:02:17]} ({Black should try} 23... f6 $14) 24. Nd3 {[%emt 0:01:12]} Nfd7 {[%emt 0:01:12]} 25. Bh3 {[%emt 0:05:45] This bishop pair is nice.} Rhe8 {[%emt 0:06:51]} (25... Rhd8 $16 26. Nxf4 Kg8) 26. Bxd7 $18 {[%emt 0:03:40]} (26. Nxf4 $6 Kg8 27. Bxe5 Nxe5 $18) 26... Qxd7 {[%emt 0:00:05]} 27. Nxe5 {[%emt 0:00:09]} (27. Qxf4 $18 {is the precise move to win.} Qg4 28. Qxg4 (28. Bxe5+ dxe5 29. Qxe5+ Kg8 $16) 28... hxg4 29. Nxe5 dxe5 30. Bxe5+ f6 31. Bc3) 27... dxe5 $16 {[%emt 0:00:04]} 28. Bxe5+ {[%emt 0:00:07]} Kg8 {[%emt 0:00:18][%cal Oe7g5]} 29. Qxf4 {[%emt 0:05:41] Hoping for Rhf1.} Bf8 $2 {[%emt 0:03:41]} ({Black should play} 29... Rc4 $14 30. Bd4 (30. Rd4 Rxd4 31. Bxd4 Qxd5 $11) 30... Bc5) 30. Qf6 $18 {[%emt 0:02:56][%csl Ge5][%cal Rf6h8]} Rxe5 {[%emt 0:00:07]} 31. Qxe5 {[%emt 0:00:01]} a3 {[%emt 0:00:23]} 32. b3 {[%emt 0:03:48]} Bg7 {[%emt 0:00:31]} 33. Qf4 {[%emt 0:00:30]} Qa7 {[%emt 0:03:47]} (33... Bf8 $142 34. Rhe1 Bd6) 34. Rd3 {[%emt 0:08:32]} Qc5 {[%emt 0:08:06][%csl Gc8][%cal Rc5c2]} 35. Qd2 {[%emt 0:04:31]} b4 {[%emt 0:07:40]} 36. Qe2 {[%emt 0:03:33]} Qd6 {[%emt 0:03:02]} 37. Re1 {[%emt 0:01:21]} Kh7 {[%emt 0:02:05]} 38. Qf2 {[%emt 0:01:53]} Rc7 {[%emt 0:01:21]} 39. Qg3 {[%emt 0:01:34]} Re7 $2 {[%emt 0:03:14]} (39... Qc5 40. Re2 Rd7) 40. Rxe7 {[%emt 0:01:25]} (40. Qxd6 $2 {gets mated.} Rxe1+) 40... Qxe7 {[%emt 0:00:07][%mdl 4096] Endgame KQR-KQB} 41. d6 {[%emt 0:31:43]} Qe2 {[%emt 0:30:06]} 42. Qf3 {[%emt 0:00:40]} (42. Qe3 $142 Qxe3 43. Rxe3) 42... Qe5 {[%emt 0:14:43][%csl Ga3,Gg7][%cal Re5b2]} 43. c3 $4 {[%emt 0:00:00][%mdl 8192]} (43. Kc1 $18 Qe1+ 44. Rd1 Qxh4 45. Qd5 (45. Qxf7 Qxg5+ 46. Rd2 Qg1+ 47. Rd1 Qg5+ 48. Rd2 Qg1+ 49. Rd1 Qg5+ $11)) 43... bxc3 $2 $40 {[%emt 0:00:00][%mdl 128] Black is up to no good.} (43... Qh2 $19 {[%csl Ga3][%cal Rh2b2]} 44. Kc1 Qxa2 45. cxb4 Qb2+ 46. Kd1 a2) 44. Qe3 {[%emt 0:00:00] Threatening mate with Qxe5.} (44. Qxf7 Qe2 45. Kc1 Qb2+ 46. Kd1 c2+ 47. Ke2 c1=Q+) 44... c2+ {[%emt 0:00:00][%mdl 64] Decoy} (44... Qh2 $5 45. Qc1 $8 c2+ 46. Qxc2 Qe5 $11) 45. Kxc2 {[%emt 0:00:00] Intending Qxe5 and mate.} Qb2+ {[%emt 0:00:00]} 46. Kd1 {[%emt 0:00:00] And now d7 would win.} Qxa2 {[%emt 0:00:00]} 47. d7 {[%emt 0:00:00] Black must now prevent Qe8.} Qb1+ {[%emt 0:00:00]} 48. Ke2 {[%emt 0:00:00]} a2 {[%emt 0:00:00] Dancing on a razor blade.} 49. d8=Q $4 {[%emt 0:00:00][%mdl 8192]} (49. Kf3 {leads to mate.} Qh1+ 50. Kg3 a1=Q) (49. Rd1 $11 Qxd1+ 50. Kxd1 a1=Q+ 51. Ke2) 49... a1=Q $19 {[%emt 0:00:00] ( -> ...Qf1+)} 50. Rd1 {[%emt 0:00:00] Against Qf1+} Qc2+ {[%emt 0:00:00]} 51. Rd2 {[%emt 0:00:00]} Qad1+ {[%emt 0:00:00] Black mates.} 52. Kf2 {[%emt 0:00:00]} Qf5+ {[%emt 0:00:00]} 53. Kg2 {[%emt 0:00:00]} Qdf1+ {[%emt 0:00:00]} 54. Kh2 {[%emt 0:00:00]} Be5+ {[%emt 0:00:01] A wild game.  Weighted Error Value: White=0.57/Black=0.41} 0-1

[Event "39th Muensterland Open 2022"]
[Site "Muenster"]
[Date "2022.10.05"]
[Round "6.4"]
[White "Jansen, Dirk Norbert"]
[Black "Scholz, Christian"]
[Result "1/2-1/2"]
[ECO "E63"]
[WhiteElo "2125"]
[BlackElo "2332"]
[Annotator "TA"]
[PlyCount "80"]
[EventDate "2022.10.01"]
[EventType "swiss"]
[EventCountry "GER"]
[SourceTitle "playchess.com"]
[Source "ChessBase"]
[SourceQuality "1"]
[TimeControl "40/5400+30:1800+30"]

{[%evp 20,80,13,11,16,12,62,44,74,70,201,205,185,79,83,87,172,184,210,45,57,58,60,39,77,80,85,83,171,83,88,26,26,0,179,43,29,7,8,3,9,0,18,10,11,0,0,0,11,8,8,0,15,14,37,8,12,10,18,0,0,0,0]} 1. c4 {[%emt 0:00:02]} Nf6 {[%emt 0:00:06]} 2. Nc3 {[%emt 0:00:34]} g6 {[%emt 0:00:05]} 3. g3 {[%emt 0:00:34]} Bg7 {[%emt 0:00:07]} 4. Bg2 {[%emt 0:00:06]} O-O {[%emt 0:00:06]} 5. d4 {[%emt 0:00:38]} d6 {[%emt 0:00:05]} 6. Nf3 {[%emt 0:00:28]} Nc6 {[%emt 0:00:06]} 7. O-O {[%emt 0:00:48]} a6 {[%emt 0:00:06]} 8. h3 {[%emt 0:01:15]} Rb8 {[%emt 0:00:06]} 9. e4 {[%emt 0:01:45]} b5 {[%emt 0:00:48]} 10. cxb5 {[%emt 0:02:35] 10.cxb5 was played by the boomers.} axb5 {[%emt 0:00:23]} 11. Re1 {[%emt 0:00:43]} e5 {[%emt 0:10:45] E63: King's Indian: Fianchetto: Panno Variation with 7...a6.} 12. dxe5 {[%emt 0:02:08]} dxe5 {[%emt 0:02:57]} (12... Nxe5 $11 13. Nxe5 dxe5) 13. Bg5 $14 {[%emt 0:04:27]} Be6 {[%emt 0:12:07] Inhibits Nd5. White is slightly better.} 14. Nd5 {[%emt 0:06:32] [#]} Ra8 $146 {[%emt 0:18:26]} (14... Bxd5 $14 15. exd5 Qxd5) ({Predecessor:} 14... Bxd5 15. exd5 Qxd5 16. Nxe5 Qxd1 17. Raxd1 Nxe5 18. Rxe5 Rfe8 19. Rc5 Re2 20. Bc1 Ne8 {1-0 (61) Fehd-Downs,R Dos Hermanas 2004}) 15. Rc1 $18 {[%emt 0:05:01]} Ra6 {[%emt 0:13:37][%cal Re6d5]} 16. Bf1 {[%emt 0:07:02]} (16. a4 $18 Bxd5 17. axb5) 16... Bxd5 $16 {[%emt 0:00:54]} 17. exd5 {[%emt 0:05:37]} Na7 {[%emt 0:11:56]} (17... Nd4 $16 {keeps fighting.}) 18. Nxe5 $18 {[%emt 0:05:36]} ({Don't play} 18. Rxe5 $6 Rxa2 19. Qb3 Ra6 $16) 18... Rxa2 {[%emt 0:02:36]} 19. Ra1 $2 {[%emt 0:03:42]} (19. Bg2 $18) 19... Rxa1 $14 {[%emt 0:01:51]} 20. Qxa1 {[%emt 0:03:22]} Nc8 {[%emt 0:02:44]} 21. Bxb5 {[%emt 0:04:35][%cal Oe5d7]} Qxd5 {[%emt 0:01:31]} 22. Bc4 {[%emt 0:04:18] A strong pair of Bishops.} Qd4 {[%emt 0:00:51] Strongly threatening ...Ne4.} 23. Qa4 $1 {[%emt 0:05:51] aiming for Bxf7+. White is more active.} Qxb2 {[%emt 0:04:43]} (23... Nd5 $16 {was worth a try.} 24. Nc6 Ncb6 25. Nxd4 Nxa4) 24. Nxf7 {[%emt 0:08:01]} (24. Bxf7+ $1 $18 {is more deadly.} Kh8 25. Bxg6 $1 {[%mdl 512]}) 24... Nb6 $16 {[%emt 0:00:32] [#]} 25. Nh6+ {[%emt 0:01:45]} (25. Qb3 $1 $16 {[%cal Rb3b2]} Qxb3 26. Nh6+ Kh8 27. Bxb3) 25... Kh8 $11 {[%emt 0:00:08]} 26. Qa2 {[%emt 0:08:02]} Nfd5 $2 {[%emt 0:07:49]} 27. Qxb2 {[%emt 0:11:12]} ({White should try} 27. Nf7+ $18 Kg8 28. Bxd5 Nxd5 29. Qxd5 Rxf7 30. Re8+ Bf8 31. Bf4) 27... Bxb2 $14 {[%emt 0:00:06]} 28. Bxd5 {[%emt 0:01:13]} Nxd5 {[%emt 0:08:59]} 29. Ng4 {[%emt 0:01:05]} h5 {[%emt 0:00:00]} 30. Ne3 {[%emt 0:00:29]} c6 {[%emt 0:00:00]} 31. Nxd5 {[%emt 0:02:19]} cxd5 $11 {[%emt 0:00:00][%mdl 4096] Endgame KRB-KRB} 32. Re6 {[%emt 0:01:47]} Kg7 {[%emt 0:00:08]} 33. Rd6 {[%emt 0:00:47]} Rf5 {[%emt 0:01:02]} 34. Be3 {[%emt 0:01:00]} Kf7 {[%emt 0:00:08]} 35. Kf1 {[%emt 0:01:16]} Ba3 {[%emt 0:00:27]} 36. Rd7+ {[%emt 0:00:22]} Kf8 {[%emt 0:00:41]} 37. g4 {[%emt 0:00:51]} hxg4 {[%emt 0:00:13] The position is equal.} 38. hxg4 {[%emt 0:00:02]} Re5 {[%emt 0:00:12]} 39. Bf4 {[%emt 0:00:37]} Re4 {[%emt 0:00:08]} 40. Be3 {[%emt 0:00:20]} Rxg4 {[%emt 0:00:17] Black defended with fortune.  Weighted Error Value: White=0.29 (precise) /Black=0.32} 1/2-1/2

[Event "39th Muensterland Open 2022"]
[Site "Muenster"]
[Date "2022.10.05"]
[Round "6.5"]
[White "Rott, Georg"]
[Black "Goldschmidt, Christian"]
[Result "1-0"]
[ECO "C48"]
[WhiteElo "2064"]
[BlackElo "2230"]
[Annotator "TA"]
[PlyCount "123"]
[EventDate "2022.10.01"]
[EventType "swiss"]
[EventCountry "GER"]
[SourceTitle "playchess.com"]
[Source "ChessBase"]
[SourceQuality "1"]
[TimeControl "40/5400+30:1800+30"]

{[%evp 9,123,2,8,-18,0,-7,1,0,0,-11,29,38,30,39,27,37,34,29,30,18,18,26,32,32,35,16,21,24,28,26,41,37,50,0,19,0,0,0,0,-19,9,-33,-21,-24,-24,-19,-31,-42,-34,-43,-32,-41,-37,-25,-8,-8,0,0,-1,-7,-1,-10,-7,-27,0,0,0,-31,174,173,254,256,306,297,294,288,324,245,487,487,487,475,505,497,743,734,716,688,736,689,631,487,464,404,559,475,610,550,534,523,650,629,650,640,5443,5379,29948,29956,29957,29958,12850,29945,11693,4141,29976,5710]} 1. e4 {[%emt 0:01:36]} e5 {[%emt 0:02:17]} 2. Nf3 {[%emt 0:00:09]} Nc6 {[%emt 0:00:06]} 3. Bb5 {[%emt 0:00:05]} Nf6 {[%emt 0:00:04]} 4. d3 {[%emt 0:00:08]} Bc5 {[%emt 0:01:01]} 5. Nc3 {[%emt 0:01:06][%cal Bb1c3,Bc3e2,Be2d4][%mdl 32]} Nd4 {[%emt 0:04:29]} 6. Nxd4 {[%emt 0:03:15] C48: Four Knights: 4 Bb5, replies other than 4...Bb4.} (6. Nxe5 {looks sharper.} O-O 7. Bc4 d6 8. Nxf7 Rxf7 9. Bxf7+ Kxf7 10. Be3) 6... Bxd4 {[%emt 0:00:21]} 7. O-O {[%emt 0:00:37]} c6 {[%emt 0:01:28]} 8. Bc4 {[%emt 0:00:22] The position is equal.} d6 {[%emt 0:05:16]} 9. Ne2 {[%emt 0:10:06] [#]} b5 $146 {[%emt 0:04:48]} ({Predecessor:} 9... Bb6 10. a4 d5 11. exd5 cxd5 12. Bb5+ Bd7 13. Bg5 Bxb5 14. axb5 h6 15. Bh4 Qd6 {1-0 (85) Razafindratsima,T (2376)-Vlachos,A (2409) Marseille 2021}) 10. Nxd4 {[%emt 0:04:07]} bxc4 {[%emt 0:00:37]} 11. Ne2 {[%emt 0:00:57]} ({Worse is} 11. Nxc6 Qb6 12. Nxa7 Qxa7 $17) 11... O-O {[%emt 0:08:01]} 12. Bg5 {[%emt 0:02:37]} cxd3 {[%emt 0:07:34]} 13. Qxd3 {[%emt 0:00:32]} h6 {[%emt 0:00:12]} 14. Bh4 {[%emt 0:01:57]} g5 {[%emt 0:01:12]} 15. Bg3 {[%emt 0:00:07]} Qe7 {[%emt 0:04:09]} 16. c4 {[%emt 0:07:25]} Ba6 {[%emt 0:03:25]} 17. Nc3 {[%emt 0:00:41]} Rad8 {[%emt 0:03:44]} 18. Rfe1 {[%emt 0:00:13]} Nh5 {[%emt 0:05:08][%cal Bf6h5,Bh5g7,Bg7e6,Be6d4][%mdl 32]} 19. b3 {[%emt 0:00:18]} Ng7 {[%emt 0:00:20]} 20. Rad1 {[%emt 0:06:27]} Ne6 {[%emt 0:00:28]} 21. Qf3 {[%emt 0:00:38]} (21. f3 $14) 21... Bb7 {[%emt 0:02:25]} 22. h4 {[%emt 0:07:32]} Kg7 {[%emt 0:01:49]} 23. Rd3 {[%emt 0:05:52]} Nd4 {[%emt 0:03:47]} 24. Qh5 {[%emt 0:01:16][%cal Of2f4]} Qf6 {[%emt 0:03:15]} 25. Bh2 {[%emt 0:13:17]} Qg6 {[%emt 0:05:46]} ({Much less strong is} 25... gxh4 26. f4 exf4 27. Rf1 $14) 26. Qxg6+ {[%emt 0:03:06]} Kxg6 {[%emt 0:00:07]} 27. hxg5 {[%emt 0:00:14]} hxg5 {[%emt 0:00:09]} 28. f3 {[%emt 0:03:39]} f6 {[%emt 0:04:33]} 29. Kf2 {[%emt 0:00:27]} Rh8 {[%emt 0:00:24]} 30. Bg3 {[%emt 0:01:08]} Rh7 {[%emt 0:00:28]} 31. Rb1 {[%emt 0:03:58]} Ba6 {[%emt 0:04:21][%cal Od6d5]} 32. Rdd1 {[%emt 0:01:00]} Kf7 {[%emt 0:01:27]} 33. Rh1 {[%emt 0:04:42]} Rdh8 {[%emt 0:00:31]} 34. Rxh7+ {[%emt 0:00:16]} Rxh7 {[%emt 0:00:03]} 35. Rc1 {[%emt 0:03:23]} Ke6 {[%emt 0:02:51]} 36. Na4 {[%emt 0:03:59]} f5 {[%emt 0:03:50]} 37. exf5+ {[%emt 0:00:46]} Nxf5 {[%emt 0:00:37]} 38. Re1 {[%emt 0:01:50][%cal Og3e5] Black must now prevent Bxe5!} (38. Nc3 $5 {[%cal Rc3e4]}) 38... c5 $2 {[%emt 0:08:12] [#] A mistake that costs the game.} (38... Bb7 $15 {stays ahead.}) 39. Bxe5 $1 $18 {[%emt 0:00:59][%cal Og2g4]} Kd7 {[%emt 0:03:28]} (39... Bb7 {was worth a try.}) 40. Bf6 {[%emt 0:02:01]} g4 {[%emt 0:00:04]} 41. fxg4 {[%emt 0:30:27]} Nh6 {[%emt 0:31:05]} 42. Kg3 {[%emt 0:00:36]} Bb7 {[%emt 0:00:29]} 43. Nc3 {[%emt 0:01:27]} Nxg4 $2 {[%emt 0:01:06]} (43... Ng8) 44. Kxg4 {[%emt 0:00:30]} Bxg2 {[%emt 0:00:03]} 45. Re2 {[%emt 0:00:55]} Bh1 {[%emt 0:01:37]} 46. Kg5 {[%emt 0:00:42]} a6 {[%emt 0:01:43]} (46... Kc8 $142 47. Nb5 d5 48. cxd5 Rd7) 47. Kg6 {[%emt 0:00:47]} Rh3 {[%emt 0:00:28]} 48. Kf7 {[%emt 0:03:18]} Rh7+ {[%emt 0:01:18]} 49. Bg7 {[%emt 0:00:14]} Kc6 {[%emt 0:03:19]} 50. Rd2 {[%emt 0:01:37]} Rh3 {[%emt 0:00:00]} 51. Bf6 {[%emt 0:00:00]} a5 {[%emt 0:00:00]} 52. Re2 {[%emt 0:00:00]} Rd3 {[%emt 0:00:00]} 53. Ke7 {[%emt 0:00:00] [#] Strongly threatening Re6.} Bf3 {[%emt 0:00:00]} 54. Re1 {[%emt 0:00:00]} Rd2 {[%emt 0:00:00]} 55. Re3 {[%emt 0:00:00]} Bg2 {[%emt 0:00:00]} 56. Bg7 {[%emt 0:00:00]} Bh1 {[%emt 0:00:00]} 57. Re6 {[%emt 0:00:00]} Bg2 {[%emt 0:00:00]} 58. Be5 {[%emt 0:00:00]} Bh3 {[%emt 0:00:00]} 59. Rxd6+ {[%emt 0:00:00]} Rxd6 {[%emt 0:00:00]} 60. Bxd6 {[%emt 0:00:00]} Bf5 {[%emt 0:00:00]} 61. Bf4 {[%emt 0:00:00]} a4 {[%emt 0:00:00]} 62. Nxa4 {[%emt 0:00:00] Weighted Error Value: White=0.14 (very precise) /Black=0.28 (precise)} 1-0

[Event "39th Muensterland Open 2022"]
[Site "Muenster"]
[Date "2022.10.05"]
[Round "6.6"]
[White "Panjer, Sidney"]
[Black "Torres-Kuckel, Rafael"]
[Result "1/2-1/2"]
[ECO "E17"]
[WhiteElo "2197"]
[BlackElo "2096"]
[Annotator "TA"]
[PlyCount "51"]
[EventDate "2022.10.01"]
[EventType "swiss"]
[EventCountry "GER"]
[SourceTitle "playchess.com"]
[Source "ChessBase"]
[SourceQuality "1"]
[TimeControl "40/5400+30:1800+30"]

{[%evp 17,51,-16,-2,-29,-22,-31,0,0,0,0,0,0,0,0,0,0,0,-4,0,-17,0,0,0,-13,-6,-13,-17,-11,-6,-13,-6,-36,-24,-67,0,-2]} 1. Nf3 {[%emt 0:00:02]} d5 {[%emt 0:03:05]} 2. d4 {[%emt 0:00:06]} Nf6 {[%emt 0:00:27]} 3. c4 {[%emt 0:00:10]} e6 {[%emt 0:00:38]} 4. g3 {[%emt 0:00:04]} Be7 {[%emt 0:00:21]} 5. Bg2 {[%emt 0:00:06]} O-O {[%emt 0:00:05]} 6. Qc2 {[%emt 0:01:10]} b6 {[%emt 0:10:58]} 7. O-O {[%emt 0:01:30]} Bb7 {[%emt 0:00:56]} 8. Rd1 {[%emt 0:05:15]} Nbd7 {[%emt 0:05:23]} 9. Ne5 {[%emt 0:03:55]} c5 {[%emt 0:07:31]} (9... Nxe5 {feels hotter.} 10. dxe5 Ng4 11. cxd5 exd5 12. Bf4 g5) 10. Nxd7 {[%emt 0:09:42] E17: Queen's Indian: 4 g3 Bb7 5 Bg2 Be7.} (10. cxd5 {is more complex.} Nxd5 11. Nxd7 Qxd7 12. dxc5 Bxc5 13. a3) 10... Qxd7 {[%emt 0:00:49]} ({Don't take} 10... Nxd7 11. cxd5 Bxd5 12. Bxd5 exd5 13. Nc3 $14) 11. dxc5 {[%emt 0:00:47]} bxc5 {[%emt 0:02:56]} 12. cxd5 {[%emt 0:02:33]} exd5 {[%emt 0:00:32][%cal Be6d5,Bd5d4][%mdl 32]} 13. Bg5 {[%emt 0:04:35]} Rac8 {[%emt 0:02:47]} 14. Nc3 {[%emt 0:05:11][%cal Oc3d5,Bb1c3,Bc3e4,Be4d2,Bd2c4][%mdl 32]} d4 {[%emt 0:02:26] [#] aiming for ...Bxg2.} 15. Bxb7 {[%emt 0:00:46]} Qxb7 {[%emt 0:00:05]} 16. Bxf6 {[%emt 0:00:06]} Bxf6 {[%emt 0:00:27]} 17. Ne4 $132 {[%emt 0:00:37][%mdl 2048] White is not keeping still} Be7 {[%emt 0:01:22] [#] Against Nd6} 18. Nd2 $146 {[%emt 0:00:35]} ({Predecessor:} 18. b3 Rfd8 19. Nd2 Qd5 20. Nc4 Bf6 21. Qd3 Re8 22. Rac1 Rcd8 23. e3 {1-0 (76) Flom,G (2474)-Ballester,A (2099) Europe Echecs INT 2021}) 18... Rfe8 {[%emt 0:00:26]} 19. Nc4 {[%emt 0:01:54]} h5 {[%emt 0:02:14]} 20. h4 {[%emt 0:00:59]} Bf8 {[%emt 0:00:53]} 21. Rac1 {[%emt 0:03:26]} Re6 {[%emt 0:05:13]} 22. Qd3 $1 {[%emt 0:12:13]} g6 {[%emt 0:06:47]} 23. Rc2 {[%emt 0:01:01]} Rce8 {[%emt 0:00:45]} 24. b3 {[%emt 0:03:02]} Qe7 {[%emt 0:01:36][%cal Re6e2]} 25. Re1 {[%emt 0:02:05]} Qc7 {[%emt 0:06:39]} (25... Bh6 $15) 26. Qf3 {[%emt 0:14:37] Weighted Error Value: White=0.09 (flawless) /Black=0.11 (very precise)} 1/2-1/2

[Event "39th Muensterland Open 2022"]
[Site "Muenster"]
[Date "2022.10.05"]
[Round "6.7"]
[White "Garbuz, Vitaliy"]
[Black "Gallasch, Robin"]
[Result "1/2-1/2"]
[ECO "B10"]
[WhiteElo "2142"]
[BlackElo "2021"]
[Annotator "TA"]
[PlyCount "61"]
[EventDate "2022.10.01"]
[EventType "swiss"]
[EventCountry "GER"]
[SourceTitle "playchess.com"]
[Source "ChessBase"]
[SourceQuality "1"]
[TimeControl "40/5400+30:1800+30"]

{[%evp 9,61,-13,8,0,10,0,8,0,6,0,16,0,0,0,0,0,0,0,0,-31,43,14,37,10,70,84,68,73,156,155,134,90,75,76,71,5,3,7,6,2,4,0,8,0,0,0,0,0,0,0,0,0,0,0]} 1. e4 {[%emt 0:19:48]} c6 {[%emt 0:00:10]} 2. Nf3 {[%emt 0:00:26]} d5 {[%emt 0:00:06]} 3. d3 {[%emt 0:00:04]} dxe4 {[%emt 0:00:08]} 4. dxe4 {[%emt 0:00:06]} Qxd1+ {[%emt 0:00:06]} 5. Kxd1 {[%emt 0:00:04]} Nf6 {[%emt 0:00:13]} 6. Nfd2 {[%emt 0:00:06] B10: Caro-Kann: 2 d3 and 2 c4.} g5 {[%emt 0:00:25]} 7. a4 {[%emt 0:00:14]} g4 {[%emt 0:00:11]} 8. a5 {[%emt 0:00:28]} Be6 {[%emt 0:00:08] [#]} 9. Nc3 $146 {[%emt 0:02:27]} ({Predecessor:} 9. Na3 Nbd7 10. Bc4 Nc5 11. Bxe6 Nxe6 12. Nac4 O-O-O 13. Re1 Bh6 14. Ra3 Nc5 15. f3 gxf3 16. gxf3 {1-0 (38) Nepomniachtchi,I (2784)-Gukesh,D (2563) Chess.com INT 2020}) 9... Nbd7 {[%emt 0:00:06]} 10. Bc4 {[%emt 0:02:35]} Nc5 {[%emt 0:00:19]} 11. Bxe6 {[%emt 0:01:55]} Nxe6 {[%emt 0:00:06]} 12. Nb3 $1 {[%emt 0:02:40]} h5 {[%emt 0:02:00]} 13. Ke2 {[%emt 0:01:19]} h4 {[%emt 0:08:04]} 14. Ra4 {[%emt 0:09:24][%cal Ba1a4,Ba4c4,Bc4e4,Be4e5][%mdl 32]} O-O-O {[%emt 0:14:42]} (14... h3 $15) 15. Be3 {[%emt 0:01:29]} Kb8 {[%emt 0:02:47]} 16. Rc4 {[%emt 0:01:07][%cal Oa5a6]} Nh5 {[%emt 0:25:29]} ({Black should play} 16... h3 $11) 17. e5 $1 $14 {[%emt 0:15:32]} Bg7 {[%emt 0:04:28]} 18. Re4 {[%emt 0:00:30]} g3 {[%emt 0:12:53]} (18... Rdf8 $142) 19. hxg3 $16 {[%emt 0:08:59]} hxg3 {[%emt 0:01:36][%cal Oh5f4]} 20. Rh3 {[%emt 0:14:45]} Bxe5 {[%emt 0:17:51]} 21. Rxe5 {[%emt 0:00:07]} Nhf4+ {[%emt 0:00:34] [#]} 22. Bxf4 {[%emt 0:01:33]} (22. Kf1 $1 $16 {Threatens to win with Rxh8.} Nxh3 23. fxg3) 22... Nxf4+ $11 {[%emt 0:00:08] The position is equal.} 23. Kf1 {[%emt 0:02:10] Hoping for Rxh8.} Nxh3 {[%emt 0:00:54]} 24. gxh3 {[%emt 0:00:11]} Rxh3 {[%emt 0:02:39]} 25. Rxe7 {[%emt 0:01:21]} gxf2 {[%emt 0:00:21]} 26. Rxf7 {[%emt 0:05:10]} Rh1+ {[%emt 0:00:30]} 27. Kxf2 {[%emt 0:00:08]} Rh2+ {[%emt 0:00:11]} 28. Ke3 {[%emt 0:00:54]} Rxc2 {[%emt 0:00:32]} 29. Na4 {[%emt 0:03:09]} Rd5 {[%emt 0:00:32] Inhibits Nbc5.} 30. Rf8+ {[%emt 0:01:24]} Kc7 {[%emt 0:00:06]} 31. Rf7+ {[%emt 0:00:19] Weighted Error Value: White=0.11 (very precise) /Black=0.17 (very precise)} 1/2-1/2